[Event "Titled Tuesday Blitz May 16 Late 2023"]
[White "Pein, Jonathan"]
[Black "Kujawski, Adam"]
[WhiteFideId "417092"]
[BlackFideId "1100920"]
[WhiteElo "2151"]
[BlackElo "2054"]
[Result "1-0"]
[Round "05"]
[TimeControl "180+2"]
[Date "2023.05.16"]
[WhiteClock "0:01:52"]
[BlackClock "0:00:00"]

1. e4 {[%clk 0:02:59]}  e5 {[%clk 0:02:58]} 2. Nf3 {[%clk 0:02:59]}  Nc6 {[%clk 0:02:58]} 3. Nc3 {[%clk 0:02:59]}  Nf6 {[%clk 0:02:57]} 4. d4 {[%clk 0:02:59]}  Bb4 {[%clk 0:02:57]} 5. Bg5 {[%clk 0:02:50]}  h6 {[%clk 0:02:45]} 6. Bxf6 {[%clk 0:02:44]}  Qxf6 {[%clk 0:02:44]} 7. dxe5 {[%clk 0:02:45]}  Nxe5 {[%clk 0:02:36]} 8. Nxe5 {[%clk 0:02:40]}  Qxe5 {[%clk 0:02:35]} 9. Qd3 {[%clk 0:02:39]}  d6 {[%clk 0:02:28]} 10. g3 {[%clk 0:02:33]}  Bd7 {[%clk 0:02:15]} 11. Bg2 {[%clk 0:02:28]}  Bb5 {[%clk 0:01:46]} 12. Qe3 {[%clk 0:02:13]}  Bxc3+ {[%clk 0:01:16]} 13. bxc3 {[%clk 0:02:09]}  O-O {[%clk 0:01:14]} 14. f4 {[%clk 0:02:08]}  Qe6 {[%clk 0:01:06]} 15. Kf2 {[%clk 0:02:05]}  Rae8 {[%clk 0:01:00]} 16. Rhe1 {[%clk 0:02:05]}  b6 {[%clk 0:00:53]} 17. Kg1 {[%clk 0:02:05]}  Kh8 {[%clk 0:00:46]} 18. a4 {[%clk 0:02:04]}  Bc6 {[%clk 0:00:39]} 19. a5 {[%clk 0:02:05]}  Qc4 {[%clk 0:00:37]} 20. axb6 {[%clk 0:02:05]}  axb6 {[%clk 0:00:37]} 21. Qd4 {[%clk 0:02:02]}  Qc5 {[%clk 0:00:35]} 22. Qxc5 {[%clk 0:02:03]}  bxc5 {[%clk 0:00:35]} 23. Ra7 {[%clk 0:02:03]}  Re7 {[%clk 0:00:34]} 24. e5 {[%clk 0:02:03]}  Bxg2 {[%clk 0:00:32]} 25. Kxg2 {[%clk 0:02:04]}  d5 {[%clk 0:00:31]} 26. Rd1 {[%clk 0:02:04]}  Rd8 {[%clk 0:00:31]} 27. Kf3 {[%clk 0:02:03]}  f6 {[%clk 0:00:31]} 28. exf6 {[%clk 0:02:02]}  gxf6 {[%clk 0:00:31]} 29. Rb1 {[%clk 0:02:00]}  Kg7 {[%clk 0:00:30]} 30. Rbb7 {[%clk 0:02:00]}  Rdd7 {[%clk 0:00:30]} 31. Rb5 {[%clk 0:02:00]}  c4 {[%clk 0:00:30]} 32. Rc5 {[%clk 0:01:59]}  Kf7 {[%clk 0:00:27]} 33. Ra6 {[%clk 0:01:57]}  Re6 {[%clk 0:00:22]} 34. Ra7 {[%clk 0:01:57]}  Ree7 {[%clk 0:00:22]} 35. f5 {[%clk 0:01:56]}  Ke8 {[%clk 0:00:17]} 36. Ra8+ {[%clk 0:01:55]}  Kf7 {[%clk 0:00:18]} 37. Ra6 {[%clk 0:01:55]}  Ke8 {[%clk 0:00:17]} 38. Rxf6 {[%clk 0:01:55]}  Rf7 {[%clk 0:00:15]} 39. Rxf7 {[%clk 0:01:53]}  Kxf7 {[%clk 0:00:15]} 40. Kf4 {[%clk 0:01:53]}  d4 {[%clk 0:00:14]} 41. Rxc4 {[%clk 0:01:53]}  dxc3 {[%clk 0:00:14]} 42. Rxc3 {[%clk 0:01:53]}  Rd4+ {[%clk 0:00:14]} 43. Ke5 {[%clk 0:01:54]}  Rd2 {[%clk 0:00:14]} 44. Rxc7+ {[%clk 0:01:54]}  Ke8 {[%clk 0:00:13]} 45. h4 {[%clk 0:01:53]}  Rg2 {[%clk 0:00:08]} 46. Ke6 {[%clk 0:01:51]}  Re2+ {[%clk 0:00:07]} 47. Kf6 {[%clk 0:01:52]}  Rg2 {[%clk 0:00:06]} 48. Rc8+ {[%clk 0:01:50]}  Kd7 {[%clk 0:00:06]} 49. Rc3 {[%clk 0:01:51]}  Ke8 {[%clk 0:00:06]} 50. Re3+ {[%clk 0:01:50]}  Kf8 {[%clk 0:00:06]} 51. Rd3 {[%clk 0:01:49]}  Ke8 {[%clk 0:00:06]} 52. c4 {[%clk 0:01:50]}  Rc2 {[%clk 0:00:04]} 53. Re3+ {[%clk 0:01:48]}  Kf8 {[%clk 0:00:05]} 54. Rd3 {[%clk 0:01:49]}  Ke8 {[%clk 0:00:05]} 55. Rd4 {[%clk 0:01:49]}  Rc3 {[%clk 0:00:04]} 56. g4 {[%clk 0:01:50]}  Rc1 {[%clk 0:00:04]} 57. g5 {[%clk 0:01:50]}  hxg5 {[%clk 0:00:04]} 58. hxg5 {[%clk 0:01:51]}  Rc2 {[%clk 0:00:03]} 59. Re4+ {[%clk 0:01:51]}  Kf8 {[%clk 0:00:02]} 60. g6 {[%clk 0:01:52]}  Rc3 {[%clk 0:00:00]} 61. g7+ {[%clk 0:01:52]} 1-0


[Site "https://www.chess.com"]

[Event "Titled Tuesday Blitz May 16 Late 2023"]
[White "Novikova, Galina"]
[Black "Smiechu"]
[WhiteFideId "4157095"]
[WhiteElo "1953"]
[BlackElo "2283"]
[Result "1-0"]
[Round "05"]
[TimeControl "180+2"]
[Date "2023.05.16"]
[WhiteClock "0:01:16"]
[BlackClock "0:00:47"]

1. e4 {[%clk 0:03:00]}  c5 {[%clk 0:02:59]} 2. Nf3 {[%clk 0:03:00]}  g6 {[%clk 0:03:00]} 3. d4 {[%clk 0:03:00]}  cxd4 {[%clk 0:03:01]} 4. Nxd4 {[%clk 0:03:00]}  Nc6 {[%clk 0:03:01]} 5. Nc3 {[%clk 0:03:01]}  Bg7 {[%clk 0:03:01]} 6. Be3 {[%clk 0:03:02]}  Nf6 {[%clk 0:03:01]} 7. Nxc6 {[%clk 0:03:02]}  bxc6 {[%clk 0:03:00]} 8. e5 {[%clk 0:03:02]}  Ng8 {[%clk 0:03:01]} 9. Bd4 {[%clk 0:03:02]}  f6 {[%clk 0:03:00]} 10. f4 {[%clk 0:03:03]}  Qa5 {[%clk 0:03:00]} 11. Bc4 {[%clk 0:03:03]}  c5 {[%clk 0:02:56]} 12. Be3 {[%clk 0:02:43]}  Bb7 {[%clk 0:02:45]} 13. O-O {[%clk 0:02:22]}  fxe5 {[%clk 0:02:34]} 14. fxe5 {[%clk 0:02:23]}  Bxe5 {[%clk 0:02:32]} 15. Bf7+ {[%clk 0:02:22]}  Kd8 {[%clk 0:02:28]} 16. Bd5 {[%clk 0:02:17]}  Qb6 {[%clk 0:02:04]} 17. Rf8+ {[%clk 0:02:14]}  Kc7 {[%clk 0:02:04]} 18. Rxa8 {[%clk 0:02:10]}  Bxa8 {[%clk 0:01:57]} 19. Bxa8 {[%clk 0:02:11]}  Nf6 {[%clk 0:01:57]} 20. Nd5+ {[%clk 0:01:39]}  Nxd5 {[%clk 0:01:57]} 21. Bxd5 {[%clk 0:01:40]}  Rf8 {[%clk 0:01:43]} 22. Bf3 {[%clk 0:01:28]}  e6 {[%clk 0:01:39]} 23. Rb1 {[%clk 0:01:25]}  d5 {[%clk 0:01:39]} 24. c3 {[%clk 0:01:25]}  Qd6 {[%clk 0:01:37]} 25. h3 {[%clk 0:01:20]}  Bf6 {[%clk 0:00:53]} 26. b4 {[%clk 0:01:17]}  c4 {[%clk 0:00:47]} 27. Bc5 {[%clk 0:01:16]} 1-0


[Site "https://www.chess.com"]

[Event "Titled Tuesday Blitz May 16 Late 2023"]
[White "Urbina Perez, Juan Antonio"]
[Black "Cooklev, Steven"]
[WhiteFideId "2217368"]
[BlackFideId "2050552"]
[WhiteElo "2197"]
[BlackElo "2281"]
[Result "0-1"]
[Round "05"]
[TimeControl "180+2"]
[Date "2023.05.16"]
[WhiteClock "0:00:10"]
[BlackClock "0:00:11"]

1. d4 {[%clk 0:02:52]}  Nf6 {[%clk 0:02:58]} 2. Nf3 {[%clk 0:02:52]}  d5 {[%clk 0:02:58]} 3. c4 {[%clk 0:02:50]}  e6 {[%clk 0:02:58]} 4. g3 {[%clk 0:02:50]}  dxc4 {[%clk 0:02:58]} 5. Bg2 {[%clk 0:02:48]}  Nc6 {[%clk 0:02:58]} 6. O-O {[%clk 0:02:45]}  Rb8 {[%clk 0:02:59]} 7. Bg5 {[%clk 0:02:34]}  Be7 {[%clk 0:02:51]} 8. e3 {[%clk 0:02:32]}  O-O {[%clk 0:02:32]} 9. Nbd2 {[%clk 0:02:31]}  b5 {[%clk 0:02:31]} 10. a4 {[%clk 0:02:28]}  a6 {[%clk 0:02:29]} 11. axb5 {[%clk 0:02:21]}  axb5 {[%clk 0:02:30]} 12. Qc1 {[%clk 0:02:18]}  Nb4 {[%clk 0:02:24]} 13. Qc3 {[%clk 0:02:10]}  Bb7 {[%clk 0:01:51]} 14. Bxf6 {[%clk 0:02:07]}  gxf6 {[%clk 0:01:52]} 15. e4 {[%clk 0:01:59]}  c5 {[%clk 0:01:48]} 16. dxc5 {[%clk 0:01:51]}  Bxc5 {[%clk 0:01:45]} 17. Rad1 {[%clk 0:01:40]}  Nd3 {[%clk 0:01:35]} 18. Nxc4 {[%clk 0:01:27]}  bxc4 {[%clk 0:01:31]} 19. Qxc4 {[%clk 0:01:25]}  Nxb2 {[%clk 0:01:12]} 20. Qxc5 {[%clk 0:01:07]}  Nxd1 {[%clk 0:01:10]} 21. Qc2 {[%clk 0:01:07]}  Nxf2 {[%clk 0:00:43]} 22. Rxf2 {[%clk 0:01:05]}  Rc8 {[%clk 0:00:39]} 23. Qe2 {[%clk 0:01:02]}  Rc1+ {[%clk 0:00:35]} 24. Bf1 {[%clk 0:00:58]}  Qb6 {[%clk 0:00:32]} 25. Kg2 {[%clk 0:00:52]}  Qc6 {[%clk 0:00:30]} 26. Nd4 {[%clk 0:00:49]}  Qxe4+ {[%clk 0:00:29]} 27. Qxe4 {[%clk 0:00:48]}  Bxe4+ {[%clk 0:00:30]} 28. Kh3 {[%clk 0:00:49]}  f5 {[%clk 0:00:30]} 29. Ne2 {[%clk 0:00:42]}  Ra1 {[%clk 0:00:29]} 30. Nf4 {[%clk 0:00:42]}  Rc8 {[%clk 0:00:26]} 31. Bb5 {[%clk 0:00:38]}  Kf8 {[%clk 0:00:19]} 32. g4 {[%clk 0:00:38]}  fxg4+ {[%clk 0:00:19]} 33. Kxg4 {[%clk 0:00:39]}  Bf5+ {[%clk 0:00:19]} 34. Kg5 {[%clk 0:00:39]}  Kg7 {[%clk 0:00:19]} 35. Nh5+ {[%clk 0:00:38]}  Kf8 {[%clk 0:00:19]} 36. Kf6 {[%clk 0:00:37]}  Bg6 {[%clk 0:00:18]} 37. Nf4 {[%clk 0:00:37]}  Ra5 {[%clk 0:00:15]} 38. Nxg6+ {[%clk 0:00:26]}  hxg6 {[%clk 0:00:16]} 39. Bd3 {[%clk 0:00:25]}  Rc3 {[%clk 0:00:16]} 40. Bb1 {[%clk 0:00:21]}  Rc6 {[%clk 0:00:13]} 41. h4 {[%clk 0:00:20]}  e5+ {[%clk 0:00:13]} 42. Kg5 {[%clk 0:00:20]}  e4+ {[%clk 0:00:12]} 43. Kh6 {[%clk 0:00:19]}  Re6 {[%clk 0:00:11]} 44. Ba2 {[%clk 0:00:10]}  Rh5# {[%clk 0:00:11]} 0-1


[Site "https://www.chess.com"]

[Event "Titled Tuesday Blitz May 16 Late 2023"]
[White "Bogaudinov, Rushan"]
[Black "Escalante Ramirez, Rafael"]
[WhiteFideId "4129288"]
[BlackFideId "3900177"]
[WhiteElo "1941"]
[BlackElo "2251"]
[Result "1-0"]
[Round "05"]
[TimeControl "180+2"]
[Date "2023.05.16"]
[WhiteClock "0:00:43"]
[BlackClock "0:00:01"]

1. g3 {[%clk 0:02:41]}  Nf6 {[%clk 0:02:57]} 2. Bg2 {[%clk 0:02:42]}  d5 {[%clk 0:02:54]} 3. d4 {[%clk 0:02:43]}  Bf5 {[%clk 0:02:51]} 4. Nf3 {[%clk 0:02:44]}  h6 {[%clk 0:02:51]} 5. O-O {[%clk 0:02:45]}  c6 {[%clk 0:02:51]} 6. c4 {[%clk 0:02:46]}  e6 {[%clk 0:02:51]} 7. Nc3 {[%clk 0:02:46]}  Be7 {[%clk 0:02:50]} 8. Bf4 {[%clk 0:02:40]}  O-O {[%clk 0:02:45]} 9. a4 {[%clk 0:02:32]}  a5 {[%clk 0:02:38]} 10. Qb3 {[%clk 0:02:29]}  Ra7 {[%clk 0:02:22]} 11. Ne5 {[%clk 0:02:26]}  Na6 {[%clk 0:02:19]} 12. Rfe1 {[%clk 0:02:18]}  Nb4 {[%clk 0:02:18]} 13. Rac1 {[%clk 0:02:15]}  Bh7 {[%clk 0:02:10]} 14. h4 {[%clk 0:02:08]}  Nd7 {[%clk 0:01:53]} 15. Ng4 {[%clk 0:01:58]}  Nf6 {[%clk 0:01:28]} 16. Ne5 {[%clk 0:01:48]}  Ra8 {[%clk 0:01:23]} 17. Red1 {[%clk 0:01:41]}  Bd6 {[%clk 0:01:17]} 18. c5 {[%clk 0:01:38]}  Bc7 {[%clk 0:01:12]} 19. Na2 {[%clk 0:01:38]}  Nxa2 {[%clk 0:01:08]} 20. Qxa2 {[%clk 0:01:39]}  Nd7 {[%clk 0:00:58]} 21. Nxd7 {[%clk 0:01:37]}  Bxf4 {[%clk 0:00:54]} 22. Nxf8 {[%clk 0:01:34]}  Kxf8 {[%clk 0:00:15]} 23. gxf4 {[%clk 0:01:32]}  Qxh4 {[%clk 0:00:16]} 24. Qb3 {[%clk 0:01:16]}  Qxf4 {[%clk 0:00:13]} 25. Qg3 {[%clk 0:01:13]}  Qf6 {[%clk 0:00:11]} 26. e3 {[%clk 0:01:11]}  Bf5 {[%clk 0:00:10]} 27. Bh3 {[%clk 0:01:06]}  g5 {[%clk 0:00:09]} 28. Bxf5 {[%clk 0:01:06]}  Qxf5 {[%clk 0:00:10]} 29. f3 {[%clk 0:01:02]}  Kg8 {[%clk 0:00:08]} 30. Kf2 {[%clk 0:01:01]}  Re8 {[%clk 0:00:07]} 31. Qg4 {[%clk 0:00:57]}  Qg6 {[%clk 0:00:07]} 32. Rh1 {[%clk 0:00:50]}  Kg7 {[%clk 0:00:06]} 33. Rce1 {[%clk 0:00:47]}  f5 {[%clk 0:00:05]} 34. Qg3 {[%clk 0:00:46]}  Kf7 {[%clk 0:00:03]} 35. Qc7+ {[%clk 0:00:45]}  Re7 {[%clk 0:00:04]} 36. Qe5 {[%clk 0:00:44]}  Re8 {[%clk 0:00:01]} 37. Rh2 {[%clk 0:00:43]} 1-0


[Site "https://www.chess.com"]

[Event "Titled Tuesday Blitz May 16 Late 2023"]
[White "Schut, Han"]
[Black "ArchibaldCerveza29"]
[WhiteFideId "1005561"]
[WhiteElo "2024"]
[BlackElo "2381"]
[Result "1-0"]
[Round "05"]
[TimeControl "180+2"]
[Date "2023.05.16"]
[WhiteClock "0:00:26"]
[BlackClock "0:00:19"]

1. e4 {[%clk 0:02:58]}  e5 {[%clk 0:02:59]} 2. Nf3 {[%clk 0:02:58]}  Nc6 {[%clk 0:02:58]} 3. Bc4 {[%clk 0:02:58]}  Nf6 {[%clk 0:02:58]} 4. d4 {[%clk 0:02:58]}  exd4 {[%clk 0:02:58]} 5. e5 {[%clk 0:02:59]}  d5 {[%clk 0:02:58]} 6. Bb5 {[%clk 0:03:00]}  Ne4 {[%clk 0:02:58]} 7. Nxd4 {[%clk 0:03:00]}  Bd7 {[%clk 0:02:59]} 8. Bxc6 {[%clk 0:03:01]}  bxc6 {[%clk 0:03:00]} 9. O-O {[%clk 0:03:01]}  Bc5 {[%clk 0:03:00]} 10. f3 {[%clk 0:03:01]}  Ng5 {[%clk 0:03:01]} 11. Be3 {[%clk 0:03:02]}  Bb6 {[%clk 0:03:00]} 12. f4 {[%clk 0:03:02]}  Ne4 {[%clk 0:03:01]} 13. Nd2 {[%clk 0:03:03]}  Nxd2 {[%clk 0:03:00]} 14. Qxd2 {[%clk 0:03:03]}  c5 {[%clk 0:03:01]} 15. Nf3 {[%clk 0:03:03]}  Bc6 {[%clk 0:03:01]} 16. c3 {[%clk 0:02:54]}  Qd7 {[%clk 0:02:32]} 17. Rae1 {[%clk 0:02:47]}  O-O-O {[%clk 0:02:30]} 18. f5 {[%clk 0:02:36]}  Rhe8 {[%clk 0:02:10]} 19. Bg5 {[%clk 0:02:30]}  f6 {[%clk 0:02:06]} 20. exf6 {[%clk 0:02:29]}  Rxe1 {[%clk 0:02:06]} 21. Rxe1 {[%clk 0:02:23]}  gxf6 {[%clk 0:01:51]} 22. Bxf6 {[%clk 0:02:20]}  Rf8 {[%clk 0:01:51]} 23. Ne5 {[%clk 0:02:06]}  Qxf5 {[%clk 0:01:51]} 24. Nxc6 {[%clk 0:02:03]}  Qxf6 {[%clk 0:01:51]} 25. Ne7+ {[%clk 0:01:58]}  Qxe7 {[%clk 0:00:54]} 26. Rxe7 {[%clk 0:01:59]}  c4+ {[%clk 0:00:54]} 27. Re3 {[%clk 0:01:27]}  Re8 {[%clk 0:00:53]} 28. Qxd5 {[%clk 0:01:26]}  Rxe3 {[%clk 0:00:52]} 29. Kf1 {[%clk 0:01:11]}  Kb8 {[%clk 0:00:33]} 30. a4 {[%clk 0:01:08]}  a5 {[%clk 0:00:32]} 31. Qxc4 {[%clk 0:01:02]}  Re5 {[%clk 0:00:32]} 32. Qg8+ {[%clk 0:00:58]}  Ka7 {[%clk 0:00:31]} 33. Qxh7 {[%clk 0:00:59]}  Re6 {[%clk 0:00:29]} 34. g4 {[%clk 0:00:48]}  Rf6+ {[%clk 0:00:28]} 35. Ke2 {[%clk 0:00:48]}  Rf2+ {[%clk 0:00:29]} 36. Kd3 {[%clk 0:00:48]}  Rxb2 {[%clk 0:00:28]} 37. h4 {[%clk 0:00:48]}  Ra2 {[%clk 0:00:27]} 38. Qe4 {[%clk 0:00:40]}  c5 {[%clk 0:00:22]} 39. h5 {[%clk 0:00:34]}  Rf2 {[%clk 0:00:20]} 40. h6 {[%clk 0:00:33]}  c4+ {[%clk 0:00:21]} 41. Kxc4 {[%clk 0:00:27]}  Rf6 {[%clk 0:00:21]} 42. Qe7+ {[%clk 0:00:26]}  Ka6 {[%clk 0:00:21]} 43. Qxf6 {[%clk 0:00:26]}  Kb7 {[%clk 0:00:21]} 44. Qxb6+ {[%clk 0:00:27]}  Ka8 {[%clk 0:00:19]} 45. Qxa5+ {[%clk 0:00:26]} 1-0


[Site "https://www.chess.com"]

[Event "Titled Tuesday Blitz May 16 Late 2023"]
[White "Martinez, Ayelen"]
[Black "Bryant, Todd"]
[WhiteFideId "118702"]
[BlackFideId "2031299"]
[WhiteElo "2125"]
[BlackElo "2360"]
[Result "0-1"]
[Round "05"]
[TimeControl "180+2"]
[Date "2023.05.16"]
[WhiteClock "0:00:00"]
[BlackClock "0:00:07"]

1. e4 {[%clk 0:03:00]}  c5 {[%clk 0:03:00]} 2. d4 {[%clk 0:03:00]}  cxd4 {[%clk 0:03:00]} 3. c3 {[%clk 0:03:01]}  Nf6 {[%clk 0:03:00]} 4. e5 {[%clk 0:03:00]}  Nd5 {[%clk 0:03:01]} 5. Nf3 {[%clk 0:02:58]}  Nc6 {[%clk 0:03:01]} 6. Bc4 {[%clk 0:02:56]}  Nb6 {[%clk 0:03:01]} 7. Bb3 {[%clk 0:02:56]}  d5 {[%clk 0:03:02]} 8. exd6 {[%clk 0:02:55]}  Qxd6 {[%clk 0:03:02]} 9. O-O {[%clk 0:02:55]}  Be6 {[%clk 0:02:58]} 10. Bxe6 {[%clk 0:02:45]}  Qxe6 {[%clk 0:02:59]} 11. Re1 {[%clk 0:02:45]}  Qd7 {[%clk 0:02:46]} 12. cxd4 {[%clk 0:02:43]}  Rd8 {[%clk 0:02:41]} 13. Nc3 {[%clk 0:02:38]}  Nxd4 {[%clk 0:02:33]} 14. Nxd4 {[%clk 0:02:39]}  Qxd4 {[%clk 0:02:34]} 15. Qxd4 {[%clk 0:02:40]}  Rxd4 {[%clk 0:02:35]} 16. Nb5 {[%clk 0:02:37]}  Rd7 {[%clk 0:02:16]} 17. Bf4 {[%clk 0:02:36]}  Nd5 {[%clk 0:02:12]} 18. Nd6+ {[%clk 0:02:33]}  Rxd6 {[%clk 0:01:18]} 19. Bxd6 {[%clk 0:02:34]}  Kd7 {[%clk 0:01:19]} 20. Bb8 {[%clk 0:02:16]}  a6 {[%clk 0:01:17]} 21. Red1 {[%clk 0:02:12]}  e6 {[%clk 0:01:16]} 22. Rac1 {[%clk 0:02:10]}  Bd6 {[%clk 0:01:02]} 23. Bxd6 {[%clk 0:01:57]}  Kxd6 {[%clk 0:01:03]} 24. Rc3 {[%clk 0:01:57]}  Re8 {[%clk 0:00:53]} 25. Rb3 {[%clk 0:01:48]}  Re7 {[%clk 0:00:36]} 26. g3 {[%clk 0:01:44]}  Rc7 {[%clk 0:00:37]} 27. Kg2 {[%clk 0:01:40]}  b5 {[%clk 0:00:36]} 28. a4 {[%clk 0:01:31]}  bxa4 {[%clk 0:00:37]} 29. Rb6+ {[%clk 0:01:20]}  Ke5 {[%clk 0:00:37]} 30. Rxa6 {[%clk 0:01:12]}  Rc2 {[%clk 0:00:35]} 31. Kf3 {[%clk 0:00:54]}  Rxb2 {[%clk 0:00:35]} 32. Rxa4 {[%clk 0:00:53]}  Rb3+ {[%clk 0:00:33]} 33. Kg4 {[%clk 0:00:47]}  f5+ {[%clk 0:00:27]} 34. Kh3 {[%clk 0:00:44]}  Rf3 {[%clk 0:00:20]} 35. Kg2 {[%clk 0:00:29]}  Rb3 {[%clk 0:00:20]} 36. Re1+ {[%clk 0:00:28]}  Kf6 {[%clk 0:00:20]} 37. Ra6 {[%clk 0:00:28]}  Rb6 {[%clk 0:00:14]} 38. Rxb6 {[%clk 0:00:26]}  Nxb6 {[%clk 0:00:15]} 39. Rb1 {[%clk 0:00:26]}  Nd5 {[%clk 0:00:16]} 40. Rb7 {[%clk 0:00:26]}  h6 {[%clk 0:00:15]} 41. h4 {[%clk 0:00:25]}  g5 {[%clk 0:00:15]} 42. h5 {[%clk 0:00:23]}  g4 {[%clk 0:00:12]} 43. f4 {[%clk 0:00:21]}  gxf3+ {[%clk 0:00:11]} 44. Kxf3 {[%clk 0:00:22]}  Kg5 {[%clk 0:00:11]} 45. Ra7 {[%clk 0:00:18]}  e5 {[%clk 0:00:10]} 46. Ra5 {[%clk 0:00:15]}  e4+ {[%clk 0:00:10]} 47. Kf2 {[%clk 0:00:13]}  Nf6 {[%clk 0:00:11]} 48. Ke3 {[%clk 0:00:13]}  Ng4+ {[%clk 0:00:11]} 49. Kd4 {[%clk 0:00:11]}  Nf6 {[%clk 0:00:10]} 50. Ke5 {[%clk 0:00:10]}  Nxh5 {[%clk 0:00:10]} 51. Ke6 {[%clk 0:00:09]}  Nxg3 {[%clk 0:00:11]} 52. Rb5 {[%clk 0:00:05]}  e3 {[%clk 0:00:10]} 53. Re5 {[%clk 0:00:05]}  e2 {[%clk 0:00:09]} 54. Re3 {[%clk 0:00:04]}  f4 {[%clk 0:00:07]} 55. Re5+ {[%clk 0:00:02]}  Kg4 {[%clk 0:00:07]} 56. Kf6 {[%clk 0:00:00]}  Kf3 {[%clk 0:00:07]} 0-1


[Site "https://www.chess.com"]

[Event "Titled Tuesday Blitz May 16 Late 2023"]
[White "Stachanczyk, Jacek"]
[Black "Dmitriev, Sergey"]
[WhiteFideId "1116657"]
[BlackFideId "14101785"]
[WhiteElo "2084"]
[BlackElo "2132"]
[Result "1-0"]
[Round "05"]
[TimeControl "180+2"]
[Date "2023.05.16"]
[WhiteClock "0:01:59"]
[BlackClock "0:01:57"]

1. e4 {[%clk 0:02:56]}  d6 {[%clk 0:02:58]} 2. d4 {[%clk 0:02:56]}  g6 {[%clk 0:02:58]} 3. Nc3 {[%clk 0:02:56]}  Bg7 {[%clk 0:02:58]} 4. f4 {[%clk 0:02:56]}  e6 {[%clk 0:02:58]} 5. Nf3 {[%clk 0:02:56]}  Ne7 {[%clk 0:02:57]} 6. e5 {[%clk 0:02:50]}  dxe5 {[%clk 0:02:54]} 7. fxe5 {[%clk 0:02:45]}  O-O {[%clk 0:02:47]} 8. Ne4 {[%clk 0:02:43]}  b6 {[%clk 0:02:37]} 9. Bg5 {[%clk 0:02:41]}  h6 {[%clk 0:02:36]} 10. Nf6+ {[%clk 0:02:28]}  Kh8 {[%clk 0:02:30]} 11. Bh4 {[%clk 0:02:28]}  g5 {[%clk 0:02:25]} 12. Nxg5 {[%clk 0:02:15]}  Bxf6 {[%clk 0:02:23]} 13. exf6 {[%clk 0:02:11]}  Ng6 {[%clk 0:02:15]} 14. Qh5 {[%clk 0:02:01]}  Nxh4 {[%clk 0:01:57]} 15. Qxh6+ {[%clk 0:01:59]}  Kg8 {[%clk 0:01:57]} 16. Qh7# {[%clk 0:01:59]} 1-0


[Site "https://www.chess.com"]

[Event "Titled Tuesday Blitz May 16 Late 2023"]
[White "KVAIDAN"]
[Black "Araujo, Everson De Moura"]
[BlackFideId "22737197"]
[WhiteElo "2379"]
[BlackElo "2035"]
[Result "0-1"]
[Round "05"]
[TimeControl "180+2"]
[Date "2023.05.16"]
[WhiteClock "0:01:38"]
[BlackClock "0:00:34"]

1. f4 {[%clk 0:03:00]}  d5 {[%clk 0:02:57]} 2. Nf3 {[%clk 0:03:00]}  g6 {[%clk 0:02:54]} 3. e3 {[%clk 0:03:00]}  Bg7 {[%clk 0:02:54]} 4. Be2 {[%clk 0:03:01]}  Nh6 {[%clk 0:02:48]} 5. O-O {[%clk 0:03:01]}  O-O {[%clk 0:02:45]} 6. d3 {[%clk 0:03:01]}  c5 {[%clk 0:02:44]} 7. Qe1 {[%clk 0:03:01]}  Nc6 {[%clk 0:02:41]} 8. e4 {[%clk 0:03:00]}  e5 {[%clk 0:02:37]} 9. exd5 {[%clk 0:02:58]}  Qxd5 {[%clk 0:02:36]} 10. Nc3 {[%clk 0:02:58]}  Qe6 {[%clk 0:02:26]} 11. fxe5 {[%clk 0:02:48]}  Nxe5 {[%clk 0:02:25]} 12. Nxe5 {[%clk 0:02:44]}  Qxe5 {[%clk 0:02:26]} 13. Bxh6 {[%clk 0:02:39]}  Bxh6 {[%clk 0:02:24]} 14. Bf3 {[%clk 0:02:40]}  Qd6 {[%clk 0:01:37]} 15. Ne4 {[%clk 0:02:33]}  Qd4+ {[%clk 0:01:35]} 16. Kh1 {[%clk 0:02:33]}  Bf5 {[%clk 0:01:28]} 17. c3 {[%clk 0:02:15]}  Qxd3 {[%clk 0:01:27]} 18. Rd1 {[%clk 0:02:13]}  Qa6 {[%clk 0:01:25]} 19. Nd6 {[%clk 0:02:06]}  Rab8 {[%clk 0:01:10]} 20. Bd5 {[%clk 0:01:59]}  Be6 {[%clk 0:00:48]} 21. Bxe6 {[%clk 0:01:54]}  fxe6 {[%clk 0:00:47]} 22. Qxe6+ {[%clk 0:01:54]}  Kh8 {[%clk 0:00:45]} 23. Nf7+ {[%clk 0:01:52]}  Rxf7 {[%clk 0:00:43]} 24. Qxf7 {[%clk 0:01:52]}  Rf8 {[%clk 0:00:42]} 25. Rd8 {[%clk 0:01:41]}  Rxd8 {[%clk 0:00:35]} 26. Qf6+ {[%clk 0:01:41]}  Qxf6 {[%clk 0:00:33]} 27. Rxf6 {[%clk 0:01:38]}  Rd1+ {[%clk 0:00:34]} 0-1


[Site "https://www.chess.com"]

[Event "Titled Tuesday Blitz May 16 Late 2023"]
[White "Ward, Ieuan C"]
[Black "Ismayilova, Khanim"]
[WhiteFideId "406627"]
[BlackFideId "13429019"]
[WhiteElo "2291"]
[BlackElo "1633"]
[Result "1-0"]
[Round "05"]
[TimeControl "180+2"]
[Date "2023.05.16"]
[WhiteClock "0:01:14"]
[BlackClock "0:01:48"]

1. e4 {[%clk 0:03:00]}  c5 {[%clk 0:02:59]} 2. Nf3 {[%clk 0:03:00]}  Nc6 {[%clk 0:03:00]} 3. d4 {[%clk 0:03:00]}  cxd4 {[%clk 0:03:00]} 4. c3 {[%clk 0:03:01]}  dxc3 {[%clk 0:03:00]} 5. Nxc3 {[%clk 0:03:02]}  d6 {[%clk 0:02:57]} 6. Bc4 {[%clk 0:03:02]}  e6 {[%clk 0:02:57]} 7. O-O {[%clk 0:03:02]}  Nf6 {[%clk 0:02:57]} 8. Qe2 {[%clk 0:03:01]}  Be7 {[%clk 0:02:57]} 9. Rd1 {[%clk 0:03:01]}  O-O {[%clk 0:02:57]} 10. e5 {[%clk 0:02:57]}  Ne8 {[%clk 0:02:57]} 11. exd6 {[%clk 0:02:41]}  Bxd6 {[%clk 0:02:56]} 12. Ne4 {[%clk 0:02:39]}  Qc7 {[%clk 0:02:55]} 13. Be3 {[%clk 0:02:22]}  Be7 {[%clk 0:02:44]} 14. Rac1 {[%clk 0:02:22]}  Nf6 {[%clk 0:02:43]} 15. Bd3 {[%clk 0:02:18]}  e5 {[%clk 0:02:26]} 16. Nfg5 {[%clk 0:01:54]}  Bg4 {[%clk 0:02:17]} 17. Nxf6+ {[%clk 0:01:47]}  gxf6 {[%clk 0:02:16]} 18. Bxh7+ {[%clk 0:01:39]}  Kh8 {[%clk 0:02:13]} 19. Qxg4 {[%clk 0:01:36]}  fxg5 {[%clk 0:02:09]} 20. Bf5 {[%clk 0:01:30]}  Kg7 {[%clk 0:01:55]} 21. Bxg5 {[%clk 0:01:25]}  Bf6 {[%clk 0:01:53]} 22. Bh4+ {[%clk 0:01:17]}  Kh6 {[%clk 0:01:48]} 23. Bxf6 {[%clk 0:01:14]} 1-0


[Site "https://www.chess.com"]